Cogmind - Beta 17 @@@ ROGUE MODE // 2026.08.23 @ 15:20:42 Player: BoomBlip Result: Destroyed by H-71 Marshal with Heavy Mass Driver Performance ------------- Evolutions (5) 2500 Regions Visited (6) 1200 Robots Destroyed (22) 110 Value Destroyed (946) 946 Prototype IDs (0) 0 Alien Tech Used (0) 0 Bonus (592) 592 TOTAL SCORE: 5348 Bonus ------- Registered with UFD 300 Met Optimus in HQ 500 Friendly Fire -208 Cogmind --------- Core Integrity 0/1000 Matter 16/300 Energy 98/100 System Corruption 15% Temperature Cool (0) Movement Core (50) Location -5/Factory Parts ------- > --- POWER (1) -------- (None) > --- PROPULSION (5) --- (None) > --- UTILITY (7) ------ (None) > --- WEAPON (4) ------- (None) > --- INVENTORY (5) ---- Improved Deuterium Engine Scrap Suit Tesla Bomb Launcher DRS Beacon (Ready) Peak State ------------ > --- POWER ------------ Neutrino Core > --- PROPULSION ------- Wheel Wheel Wheel Wheel > --- UTILITY ---------- Scrap Suit Advanced Heat Sink Small Storage Unit Advanced Sensor Array Improved Medium Armor Plating Long-range Tractor Beam > --- WEAPON ----------- Coil Gun KE Penetrator Enhanced Gauss Cannon Enhanced Gauss Cannon > --- INVENTORY -------- Light Nuclear Core Improved Deuterium Engine Scrap Suit Wave Gun Enhanced Gauss Cannon Tesla Bomb Launcher DRS Beacon [Rating: 66] Favorites ----------- Power Light Ion Engine Engine Light Ion Engine Power Core Neutrino Core Propulsion Wheel Treads Improved Treads Leg Aluminum Leg Wheel Wheel Utility Small Storage Unit Device Scrap Suit Storage Small Storage Unit Protection Improved Medium Armor Plating Weapon Subdweller Machine Gun Energy Gun Small Laser Ballistic Gun Subdweller Machine Gun Ballistic Cannon Mass Driver Launcher Grenade Launcher Special Weapon CPS Tube Build | -11 -10 -10 -7 -5 -5 -5 ------- Run | Yrd Mat Sub Scr Fac Was Fac Slots Evolved 10 | . . . . 10 . . Power . | . . . . . . . Propulsion 3 | . . . . 3 . . Utility 5 | . . . . 5 . . Weapon 2 | . . . . 2 . . Parts Attached 29 | . . 3 4 15 . 7 Power 3 | . . . 1 1 . 1 Engine 1 | . . . 1 . . . Core 2 | . . . . 1 . 1 Reactor . | . . . . . . . Propulsion 9 | . . . 3 4 . 2 Treads 2 | . . . . 2 . . Leg 2 | . . . . . . 2 Wheel 5 | . . . 3 2 . . Hover . | . . . . . . . Flight . | . . . . . . . Utility 7 | . . . . 6 . 1 Device 5 | . . . . 5 . . Storage . | . . . . . . . Processor . | . . . . . . . Hackware . | . . . . . . . Protection 2 | . . . . 1 . 1 Artifact . | . . . . . . . Weapon 10 | . . 3 . 4 . 3 Energy Gun 1 | . . 1 . . . . Energy Cannon . | . . . . . . . Ballistic Gun 4 | . . 1 . 2 . 1 Ballistic Cannon 3 | . . . . 1 . 2 Launcher 1 | . . 1 . . . . Special Weapon 1 | . . . . 1 . . Impact Weapon . | . . . . . . . Slashing Weapon . | . . . . . . . Piercing Weapon . | . . . . . . . Special Melee Weapon . | . . . . . . . Unidentified Prototypes . | . . . . . . . Parts Lost 10 | . . 2 . 1 . 7 Power . | . . . . . . . Propulsion 5 | . . 1 . . . 4 Utility 2 | . . . . . . 2 Weapon 3 | . . 1 . 1 . 1 Highest Loss Streak 6 | . . 2 . 1 . 6 To Critical Strikes . | . . . . . . . Average Backups 6 | . 7 7 7 4 6 5 Power 1 | . 1 1 . . 2 1 Propulsion 2 | . 4 5 2 . 1 . Utility . | . . . . 1 1 1 Weapon 2 | . 1 1 3 2 2 2 Tool/Special . | . . . . . . . Unused Backups 18 | . 6 2 5 . . 5 Power 3 | . 1 . 1 . . 1 Propulsion 6 | . 2 1 3 . . . Utility 2 | . 1 . . . . 1 Weapon 7 | . 2 1 1 . . 3 Tool/Special . | . . . . . . . Average Slot Usage (%) 78 | . 85 75 84 68 94 71 Engine 9 | . 14 14 14 2 . . Core 1 | . . . . 2 5 4 Treads 1 | . . . . 6 11 3 Leg 7 | . 28 18 . . . . Wheel 14 | . . . 26 13 17 13 Device 5 | . . . . 10 23 18 Storage 10 | . 14 14 14 5 5 4 Protection 1 | . . . . 2 5 4 Energy Gun 5 | . 28 10 . . . . Ballistic Gun 10 | . . 7 14 10 17 11 Ballistic Cannon 2 | . . . . 6 5 7 Launcher 6 | . . 9 14 1 . . Peak Build Rating 66 | . 6 6 13 63 63 66 Average Rating 21 | . 6 5 8 42 63 54 On Entrance 23 | 6 6 6 6 13 63 63 Avg Prop Armor Cover (%) 7 | . . . . 7 8 8 Naked Turns 63 | . . . . . . 63 Heaviest Build 62 | 11 11 15 22 54 53 62 Greatest Support 46 | 20 20 20 26 46 30 40 Greatest Overweight (x) 16 | . . 1 1 5 1 16 Average Overweight (x) . | . . . . 1 1 1 Largest Inventory Capacity 8 | . 8 8 8 8 8 8 Average Capacity 7 | . 8 8 8 8 8 7 Most Carried 8 | . 8 8 8 8 8 8 Average Carried 7 | . 7 7 7 6 8 7 Final Capacity 8 | 8 8 8 8 8 8 5 Final Carried 8 | 6 8 8 8 8 8 5 Scrap Suit Usage (%) 27 | . . . . 84 100 77 Parts Cannibalized 9 | . . . . 3 . 6 Class Distribution -------------------- 68% | Mutant 24% | Scavenger-Tank 3% | Bomber 3% | Tank Dominant Class ---------------- Mutant | -10/Materials Mutant | -10/Subcaves Mutant | -7/Scraptown Scavenger-Tank | -5/Factory Scavenger-Tank | -5/Waste Scavenger-Tank | -5/Factory Resources | -11 -10 -10 -7 -5 -5 -5 ----------- Run | Yrd Mat Sub Scr Fac Was Fac Matter Collected 1100 | 200 . 40 40 232 . 588 Remotely 530 | . . . . . . 530 Salvage Created 792 | . 23 64 . 167 . 538 Parts 56 | . 3 3 . 19 . 31 Haulers Intercepted 1 | . . . . . . 1 Recyclers Shooed . | . . . . . . . Parts Field Recycled . | . . . . . . . Retrieved Matter . | . . . . . . . Parts Self-Destructed . | . . . . . . . Prevented . | . . . . . . . Parts Restored . | . . . . . . . Kills | -11 -10 -10 -7 -5 -5 -5 ------- Run | Yrd Mat Sub Scr Fac Was Fac Combat Hostiles Destroyed 15 | . . 1 . 5 . 9 Guns 8 | . . . . 4 . 4 Cannons 6 | . . . . 1 . 5 AOE 1 | . . 1 . . . . Classes Destroyed 11 | . 1 2 . 4 . 4 Worker 1 | . . . . 1 . . Tunneler 3 | . 1 . . . . 2 Hauler 1 | . . . . . . 1 Watcher 1 | . . . . 1 . . Swarmer 4 | . . . . 4 . . Grunt 2 | . . . . . . 2 Sentry 3 | . . . . 1 . 2 Hunter 4 | . . . . . . 4 Programmer 1 | . . . . . . 1 Subdweller 1 | . . 1 . . . . Federalist 1 | . . 1 . . . . Best Kill Streak 4 | . 1 1 . 4 . 4 Combat Bots Only 4 | . . 1 . 4 . 2 Max Kills in Single Turn 2 | . 1 2 . 2 . 1 Gunslinging 1 | . . . . 1 . . Exploded 1 | . . 1 . . . . Melee . | . . . . . . . Uniques/NPCs Destroyed . | . . . . . . . Combat | -11 -10 -10 -7 -5 -5 -5 -------- Run | Yrd Mat Sub Scr Fac Was Fac Hostile Shots Fired 242 | . . 22 6 32 . 182 Missed 69 | . . 7 2 8 . 52 Hits 173 | . . 15 4 24 . 130 Projectile 173 | . . 15 4 24 . 130 Critical Strikes 10 | . . . . 1 . 9 Damage Taken 3462 | . . 390 81 502 . 2489 Core 1143 | . . 88 . 63 . 992 Absorbed by Shields . | . . . . . . . Regen/Repaired (Parts) 72 | . . . . 30 . 42 Core Remaining (%) 82 | 100 . . 64 . . . Volleys Fired 68 | . 3 13 . 15 . 37 Largest 4 | . 2 2 . 4 . 4 Hottest 157 | . 80 80 . 144 . 157 Shots Fired 204 | . 6 26 . 44 . 128 Gun 137 | . 6 25 . 31 . 75 Cannon 63 | . . . . 10 . 53 Launcher 2 | . . 1 . 1 . . Special 2 | . . . . 2 . . Kinetic 169 | . . . . 41 . 128 Thermal 19 | . 3 16 . . . . Explosive 2 | . . 1 . 1 . . Electromagnetic 12 | . 3 9 . . . . Robot Hit Streak 9 | . 3 9 . 9 . 9 Robot Miss Streak 10 | . 1 1 . 10 . 4 Penetration Max 1 | . . . . 1 . 1 Secondary Targets 1 | . . . . 1 . . Max Gunslinging Chain 1 | . . . . 1 . . Shots Hit Robots 119 | . 4 21 . 23 . 71 Core Hits 52 | . 1 5 . 14 . 32 Critical Kills . | . . . . . . . Critical Parts Destroyed 3 | . . . . . . 3 Critical Strikes 9 | . . . . . . 9 Destroy 3 | . . . . . . 3 Blast 6 | . . . . . . 6 Melee Attacks . | . . . . . . . Impact . | . . . . . . . Slashing . | . . . . . . . Piercing . | . . . . . . . Sneak Attacks . | . . . . . . . Combat Hostiles . | . . . . . . . Follow-up Attacks . | . . . . . . . Damage Inflicted 2784 | . 46 179 . 620 . 1939 Guns 1526 | . 46 21 . 406 . 1053 Cannons 1083 | . . . . 214 . 869 Explosions 158 | . . 158 . . . . Melee . | . . . . . . . Ramming 17 | . . . . . . 17 Kinetic 2542 | . . . . 620 . 1922 Thermal 44 | . 34 10 . . . . Explosive 158 | . . 158 . . . . Electromagnetic 23 | . 12 11 . . . . Impact . | . . . . . . . Slashing . | . . . . . . . Piercing . | . . . . . . . Highest Corruption 15 | . . . . . 7 15 Average Corruption 8 | . . . . . 7 8 Corruption Purged . | . . . . . . . Corruption Blocked . | . . . . . . . Effects 16 | . . . . . 2 14 Message Errors 6 | . . . . . . 6 Matter Fused 5 | . . . . . 1 4 Heat Flow Errors 1 | . . . . . . 1 Parts Rejected 1 | . . . . . 1 . Data Loss (minor) 1 | . . . . . . 1 Data Loss (major) 1 | . . . . . . 1 Misfires 1 | . . . . . . 1 Overload Shots . | . . . . . . . Overflow Damage 52 | . . . . 11 . 41 Projectiles 47 | . . . . 6 . 41 Explosions 5 | . . . . 5 . . Melee . | . . . . . . . Knockbacks 10 | . . . . . . 10 Impact . | . . . . . . . Kinetic 9 | . . . . . . 9 Secondary 1 | . . . . . . 1 Self-Inflicted Damage 106 | . . 26 . 29 . 51 Shots 4 | . . 1 . 1 . 2 Rammed 3 | . . . . . . 3 Targets Rammed 3 | . . . . . . 3 Kicked . | . . . . . . . Crushed . | . . . . . . . Highest Temperature 674 | . 36 . . 138 . 674 Average Temperature 178 | . 18 . . 73 . 208 Received Heat Transfer 324 | . . 36 36 45 . 207 Effects 16 | . . . . . . 16 Shutdowns 1 | . . . . . . 1 Energy Bleed 3 | . . . . . . 3 Interference 6 | . . . . . . 6 Matter Decay 1 | . . . . . . 1 Short Circuit 2 | . . . . . . 2 Damage (minor) 2 | . . . . . . 2 Damage (major) 1 | . . . . . . 1 Siege Activations . | . . . . . . . Martial Activations . | . . . . . . . Shielding Activations . | . . . . . . . Robots Disrupted . | . . . . . . . Combat Hostiles . | . . . . . . . Robots Corrupted . | . . . . . . . Combat Hostiles . | . . . . . . . Parts Fried . | . . . . . . . Impact Corruptions . | . . . . . . . Robots Melted . | . . . . . . . Combat Hostiles . | . . . . . . . Parts Melted . | . . . . . . . Heat Transferred 100 | . 75 25 . . . . Parts Sabotaged . | . . . . . . . Parts Stolen . | . . . . . . . Parts Stripped . | . . . . . . . Power Chain Reactions . | . . . . . . . Alert | -11 -10 -10 -7 -5 -5 -5 ------- Run | Yrd Mat Sub Scr Fac Was Fac Maximum Alert Level 1 | . . . . . . 1 Low Security (%) 80 | . 100 . . 100 100 53 Level 1 19 | . . . . . . 46 Level 2 . | . . . . . . . Level 3 . | . . . . . . . Level 4 . | . . . . . . . Level 5 . | . . . . . . . High Security . | . . . . . . . Max Security . | . . . . . . . Peak Influence 365 | . 9 . . 135 33 365 Initial 33 | . . . . . 33 2 Average 70 | . . . . 44 20 139 Influence Increases 867 | . 14 . . 205 . 648 Destroy 0b10 Robot/C 280 | . . . . 100 . 180 Destroy 0b10 Robot/NC 30 | . 5 . . 10 . 15 Destroy Leader 64 | . . . . 22 . 42 Successful Hack 14 | . 9 . . . . 5 Disable Machine 165 | . . . . . . 165 Destroy Structure 134 | . . . . 28 . 106 Lose Combat Pursuer 180 | . . . . 45 . 135 Influence Decreases 510 | . 14 . . 110 92 294 Entered New Map 63 | . . . . . 62 1 Time Decay 367 | . 14 . . 100 30 223 Lost Part 80 | . . . . 10 . 70 Squads Dispatched 6 | . . . . 1 . 5 Investigation . | . . . . . . . Extermination 2 | . . . . 1 . 1 Reinforcement 2 | . . . . . . 2 Assault . | . . . . . . . Garrison 2 | . . . . . . 2 Intercept . | . . . . . . . Searches Triggered . | . . . . . . . Construction Impeded 1 | . . . . . . 1 Haulers Reinforced 1 | . . . . . . 1 Active Scanning Responses . | . . . . . . . Cargo Convoy Interrupts . | . . . . . . . Stealth | -11 -10 -10 -7 -5 -5 -5 --------- Run | Yrd Mat Sub Scr Fac Was Fac Distress Signals 1 | . . . . . . 1 Communications Jammed . | . . . . . . . Distress Signals . | . . . . . . . Times Spotted 48 | . . 3 2 11 4 28 Peak Tracking Total 13 | . . 2 2 6 4 13 Tactical Retreats 7 | . . . . 3 . 4 Traps | -11 -10 -10 -7 -5 -5 -5 ------- Run | Yrd Mat Sub Scr Fac Was Fac Traps Triggered 1 | . . . . 1 . . Indirectly . | . . . . . . . Trap Hack Attempts . | . . . . . . . Triggered . | . . . . . . . Disarmed . | . . . . . . . Reprogrammed . | . . . . . . . Reused . | . . . . . . . Traps Extracted . | . . . . . . . Installed . | . . . . . . . Triggered . | . . . . . . . Machines | -11 -10 -10 -7 -5 -5 -5 ---------- Run | Yrd Mat Sub Scr Fac Was Fac Machines Disabled 11 | . . . . . . 11 Max in Single Turn 5 | . . . . . . 5 Machines Repaired . | . . . . . . . Machines Dismantled . | . . . . . . . Machines Sabotaged . | . . . . . . . Overloaded Fab Kills . | . . . . . . . Hacking | -11 -10 -10 -7 -5 -5 -5 --------- Run | Yrd Mat Sub Scr Fac Was Fac Machines Accessed 9 | . 1 . 7 . . 1 Terminals 2 | . 1 . . . . 1 Fabricators . | . . . . . . . Repair Stations . | . . . . . . . Recycling Units . | . . . . . . . Scanalyzers . | . . . . . . . Garrison Access . | . . . . . . . Total Hacks 51 | . 2 . 48 . . 1 Successful 51 | . 2 . 48 . . 1 Failed . | . . . . . . . Catastrophic . | . . . . . . . Database Lockouts . | . . . . . . . Manual 2 | . 2 . . . . . Terminals 3 | . 2 . . . . 1 Fabricators . | . . . . . . . Repair Stations . | . . . . . . . Recycling Units . | . . . . . . . Scanalyzers . | . . . . . . . Garrison Access . | . . . . . . . Terminal Hacks 49 | . . . 48 . . 1 Record 48 | . . . 48 . . . Open DSF 1 | . . . . . . 1 Fabricator Hacks . | . . . . . . . Repair Station Hacks . | . . . . . . . Recycling Unit Hacks . | . . . . . . . Scanalyzer . | . . . . . . . Garrison Access Hacks . | . . . . . . . Unauthorized Hacks 2 | . 2 . . . . . Terminals 2 | . 2 . . . . . Botnet 1 | . 1 . . . . . Skim 1 | . 1 . . . . . Fabricators . | . . . . . . . Repair Stations . | . . . . . . . Recycling Units . | . . . . . . . Scanalyzers . | . . . . . . . Garrison Access . | . . . . . . . Data Cores Recovered . | . . . . . . . Used . | . . . . . . . Hacking Detections 1 | . 1 . . . . . Full Trace Events . | . . . . . . . Feedback Events . | . . . . . . . Feedback Blocked . | . . . . . . . Robot Schematics Acquired . | . . . . . . . Robots Built . | . . . . . . . Authchips . | . . . . . . . Time . | . . . . . . . Total Robot Build Rating . | . . . . . . . Part Schematics Acquired . | . . . . . . . Parts Built . | . . . . . . . Authchips . | . . . . . . . Time . | . . . . . . . Total Part Build Rating . | . . . . . . . Part Studies Acquired . | . . . . . . . Parts Repaired . | . . . . . . . Time . | . . . . . . . Parts Recycled . | . . . . . . . Recycled Matter . | . . . . . . . Retrieved Matter . | . . . . . . . Retrieved Components . | . . . . . . . Parts Scanalyzed . | . . . . . . . Part Schematics Acquired . | . . . . . . . Parts Damaged . | . . . . . . . Bothacking | -11 -10 -10 -7 -5 -5 -5 ------------ Run | Yrd Mat Sub Scr Fac Was Fac Used RIF Installer . | . . . . . . . Robots Hacked . | . . . . . . . Non-combat . | . . . . . . . Combat . | . . . . . . . Robot Hacks Applied . | . . . . . . . Relay Couplers Released . | . . . . . . . Fabnet Peak Effective % . | . . . . . . . Robots Rewired . | . . . . . . . Allies Hacked . | . . . . . . . Hacks Repelled . | . . . . . . . Allies | -11 -10 -10 -7 -5 -5 -5 -------- Run | Yrd Mat Sub Scr Fac Was Fac Total Allies . | . . . . . . . Largest Group . | . . . . . . . Highest-Rated Group . | . . . . . . . Highest-Rated Ally . | . . . . . . . Initial UFD Resources 39 | . . . . 39 39 39 Total Orders . | . . . . . . . Ally Attacks . | . . . . . . . Total Damage . | . . . . . . . Kills . | . . . . . . . Allies Corrupted . | . . . . . . . Allies Melted 3 | . . . 3 . . . Intel | -11 -10 -10 -7 -5 -5 -5 ------- Run | Yrd Mat Sub Scr Fac Was Fac Active Infowar (turns) 510 | . . . . 47 66 397 Sensors 510 | . . . . 47 66 397 Robot Analysis Total . | . . . . . . . Derelict Logs Recovered . | . . . . . . . Drone Launches . | . . . . . . . Drone Recoveries . | . . . . . . . Exploration | -11 -10 -10 -7 -5 -5 -5 ------------- Run | Yrd Mat Sub Scr Fac Was Fac Turns Passed 2700 | . 345 468 984 315 66 522 Spaces Moved 2065 | 1 131 247 1049 208 68 361 Core 125 | . . . . . . 125 Treads 14 | . . . . 14 . . Legs 407 | 1 131 247 26 . . 2 Wheels 1519 | . . . 1023 194 68 234 Hover . | . . . . . . . Flight . | . . . . . . . Fastest Speed 50 | 120 120 120 80 95 95 50 Average Speed 104 | 120 120 167 92 103 95 92 Slowest Speed 850 | 120 120 190 190 240 95 850 Overloaded Moves . | . . . . . . . Propulsion Burnouts . | . . . . . . . Robots Hopped . | . . . . . . . Potential Cave-ins . | . . . . . . . Cave-ins Triggered . | . . . . . . . Exploration Rate (%) 30 | 2 19 19 69 4 84 14 Regions Visited 6 Branch Regions 2 Pre-discovered Areas 2 | . . . 2 . . . Known Exits Taken . | . . . . . . . Unknown Exits Taken 4 | 1 1 1 1 . . . Scrap Searched 3 | . . . 3 . . . Spaces Dug . | . . . . . . . Terrain Destroyed 116 | . . 5 . 16 . 95 Melee . | . . . . . . . Projectile 33 | . . . . 8 . 25 AOE 83 | . . 5 . 8 . 70 Terrain Rammed . | . . . . . . . Walls Destroyed . | . . . . . . . Machines Disabled . | . . . . . . . Actions | -11 -10 -10 -7 -5 -5 -5 --------- Run | Yrd Mat Sub Scr Fac Was Fac Total 2467 | . 313 276 1067 272 68 471 Wait 267 | . 178 12 . 28 . 49 Move 2060 | . 130 246 1048 208 67 361 Hop . | . . . . . . . Pick Up 14 | . 2 1 6 2 . 3 Fast Attach 13 | . . 1 . 8 1 3 Attach 8 | . . 1 2 5 . . Detach 1 | . . . . 1 . . Swap 12 | . . 1 2 4 . 5 Drop 21 | . . 1 9 1 . 10 Fire 68 | . 3 13 . 15 . 37 Melee . | . . . . . . . Ram 3 | . . . . . . 3 Kick . | . . . . . . . Crush . | . . . . . . . Escape Stasis . | . . . . . . . Rewire . | . . . . . . . Trap . | . . . . . . . Miscellaneous . | . . . . . . . Route ------- -11/Scrapyard -10/Materials -10/Subcaves -7/Scraptown (discovered 2 exits: *Fac x2) -5/Factory -5/Waste -5/Factory (discovered 1 exit: [*Upp]) History --------- Turn | Location | Event 1 | -11/Scrapyard | Discovered new exit (range 0) 1 | -11/Scrapyard | Entered Materials 2 | -10/Materials | Met a group of wandering Federalists 90 | -10/Materials | Discovered new exit (range 10) 305 | -10/Materials | Build established: Mutant 346 | -10/Materials | Entered Subcaves 347 | -10/Subcaves | Continued accompanying wandering Federalists (6) 803 | -10/Subcaves | A swath of the cavern ceiling suddenly collapsed 814 | -10/Subcaves | Entered Scraptown 1153 | -7/Scraptown | Discovered new exit (range 3) 1223 | -7/Scraptown | Visited Cyclists 1272 | -7/Scraptown | Visited Comm Corps 1320 | -7/Scraptown | Visited Fellowship of the Rings 1345 | -7/Scraptown | Visited SPCMW 1371 | -7/Scraptown | Visited UFD Registry 1371 | -7/Scraptown | Registered with UFD as "Carbonhead" 1433 | -7/Scraptown | Entered Cyclist Reading Room 1438 | -7/Scraptown | Learned location of Zion (-6) 1590 | -7/Scraptown | Met Optimus 1590 | -7/Scraptown | Accepted into 0bPrime 1660 | -7/Scraptown | Visited Derelict Rescue Squad 1669 | -7/Scraptown | Found DRS Beacon 1690 | -7/Scraptown | Visited Abandonware Association 1696 | -7/Scraptown | Learned abandonware demo "OVRCLOCK.EXE" 1702 | -7/Scraptown | Learned abandonware demo "KABOOM.EXE" 1720 | -7/Scraptown | Visited Modified Component R&D 1721 | -7/Scraptown | Civil war broke out across Scraptown 1748 | -7/Scraptown | Found Scrap Suit 1751 | -7/Scraptown | Found Scrap Suit 1790 | -7/Scraptown | Discovered new exit (range 5) 1798 | -7/Scraptown | Entered Factory 1798 | -5/Factory | Evolved 10 slots: Propulsion x3, Utility x5, Weapon x2 1813 | -5/Factory | Lost 9 allies 1903 | -5/Factory | Attached CPS modules to Y-64 Sentinel 1905 | -5/Factory | Attached CPS modules to Y-64 Sentinel 2113 | -5/Factory | Sucked down chute 2113 | -5/Factory | Entered Waste 2120 | -5/Waste | Spotted C-40 Crusher 2128 | -5/Waste | EMP discharged 2152 | -5/Waste | Spotted C-40 Crusher 2152 | -5/Waste | Spotted C-40 Crusher 2163 | -5/Waste | Spotted C-40 Crusher 2164 | -5/Waste | Spotted C-40 Crusher 2169 | -5/Waste | Discovered new exit (range 10) 2179 | -5/Waste | Entered Factory 2198 | -5/Factory | Build established: Scavenger-Tank 2333 | -5/Factory | Found Prototype Launcher 2537 | -5/Factory | Garrison activated, responded to threat 2635 | -5/Factory | System corruption reached 10% 2638 | -5/Factory | Released all parts (11) 2642 | -5/Factory | Lost 6 parts (3n2u1w) 2652 | -5/Factory | Core integrity fell below 50% 2675 | -5/Factory | Core integrity fell below 20% 2690 | -5/Factory | Discovered new exit (range 15) 2701 | -5/Factory | Destroyed by H-71 Marshal with Heavy Mass Driver Last Messages --------------- 02638_ Released Sml. Storage Unit. 02638_ Released Enh. Gauss Cannon. 02638_ Released Lyr. Medium Armor Plating. 02638_ Released Flexi-carbon Leg. 02638_ Released Gauss Rifle. 02641_ Slammed into S-27 Virus. 02645_ K-01 Serf collects debris. 02648_ W-25 Informer sends out distress signal. 02653_ S-27 Virus destroyed. 02655_ K-01 Serf cleans the DSF Access. 02655_ K-01 Serf collects debris. 02659_ K-01 Serf cleans the DSF Access. 02663_ Connecting with DSF Access... 02666_ System corrupted: Component data lost. 02684_